fUST/lending_fUST_20260224
["ID","MTS","AMOUNT","RATE_DAILY","PERIOD"]
[406415722,1771872562446,-500.0,0.00011998,2]
[406415723,1771872562468,-500.0,0.00011998,2]
[406415724,1771872562490,-500.0,0.00011998,2]
[406415725,1771872562511,-500.0,0.00011998,2]
[406415726,1771872562533,-500.0,0.00011998,2]
[406415727,1771872562556,-500.0,0.00011998,2]
[406415728,1771872562577,-500.0,0.00011998,2]
[406415729,1771872562599,-379.10818162,0.00011998,2]
[406415730,1771872562622,-500.0,0.00011998,2]
[406415731,1771872562643,-500.0,0.00011998,2]
[406415732,1771872562664,-500.0,0.00011998,2]
[406415733,1771872562684,-500.0,0.00011998,2]
[406415734,1771872562705,-500.0,0.00011998,2]
[406415735,1771872562736,-500.0,0.00011998,2]
[406415736,1771872562759,-500.0,0.00011998,2]
[406415737,1771872562780,-235.01563409,0.00011999,2]
[406415738,1771872562801,-1020.00201311,0.00012,2]
[406415739,1771872566138,-4491.70201425,0.00011878,2]
[406415740,1771872566158,-101936.89798689,0.00012,2]
[406415741,1771872566176,-207.65166258,0.00012206,2]
[406415742,1771872566196,-299.66,0.00012329,2]
[406415743,1771872566216,-249.71,0.00012329,2]
[406415744,1771872566236,-208.09,0.00012329,2]
[406415745,1771872566256,-173.41,0.00012329,2]
[406415746,1771872566275,-867.09,0.00012329,2]
[406415747,1771872566295,-153.96784386,0.00012556,2]
[406415748,1771872572276,2586.81040393,0.00042415,60]
[406415749,1771872610331,500.0,0.00042415,120]
[406415750,1771872610648,345.13243349,0.00042415,120]
[406415751,1771872611019,500.0,0.00042415,120]
[406415752,1771872611614,500.0,0.00042415,120]
[406415753,1771872612224,500.0,0.00042415,120]
[406415754,1771872612846,500.0,0.00042415,120]
[406415755,1771872613436,500.0,0.00042415,120]
[406415756,1771872614031,500.0,0.00042415,120]
[406415757,1771872614678,500.0,0.00042415,120]
[406415758,1771872615067,151.0,0.00042415,120]
[406415759,1771872615314,500.0,0.00042415,120]
[406415760,1771872615709,156.587,0.00042415,120]
[406415762,1771872615943,500.0,0.00042415,120]
[406415763,1771872616340,162.380719,0.00042415,120]
[406415764,1771872616564,500.0,0.00042415,120]
[406415765,1771872616972,168.3888056,0.00042415,120]
[406415766,1771872617246,500.0,0.00042415,120]
[406415767,1771872617604,174.61919141,0.00042415,120]
[406415768,1771872617845,500.0,0.00042415,120]
[406415769,1771872618251,181.08010149,0.00042415,120]
[406415770,1771872618280,390.84009812,0.00042415,120]
[406415771,1771872618516,500.0,0.00042415,120]
[406415772,1771872618913,187.78006525,0.00042415,120]
[406415773,1771872619110,500.0,0.00042415,120]
[406415774,1771872619536,194.72792766,0.00042415,120]
[406415775,1771872619907,500.0,0.00042415,120]
[406415776,1771872620529,500.0,0.00042415,120]
[406415777,1771872620660,201.93286099,0.00042415,120]
[406415778,1771872621251,500.0,0.00042415,120]
[406415779,1771872621283,209.40437684,0.00042415,120]
[406415780,1771872621909,500.0,0.00042415,120]
[406415781,1771872621941,217.15233878,0.00042415,120]
[406415782,1771872622537,225.18697532,0.00042415,120]
[406415783,1771872622568,500.0,0.00042415,120]
[406415784,1771872623208,233.51889341,0.00042415,120]
[406415785,1771872623852,242.15909246,0.00042415,120]
[406415786,1771872624479,251.11897888,0.00042415,120]
[406415787,1771872625125,260.4103811,0.00042415,120]
[406415788,1771872625724,270.0455652,0.00042415,120]
[406415789,1771872626349,280.03725112,0.00042415,120]
[406415790,1771872627028,290.39862941,0.00042415,120]
[406415791,1771872627700,290.39862941,0.00042415,120]
[406415792,1771872628323,211.37381251,0.00042415,120]
[406415816,1771872632245,-208.75446729,0.00012811,2]
[406415818,1771872632255,-611.70914117,0.00013272,5]
[406415820,1771872632264,-500.0,0.00013273,2]
[406415822,1771872632272,-500.0,0.00013273,2]
[406415824,1771872632283,-300.0,0.00013698,2]
[406415826,1771872632293,-500.0,0.00013699,2]
[406415842,1771872632401,-339.11845864,0.00013699,2]
[406415844,1771872632413,-500.0,0.00013699,2]
[406415846,1771872632423,-500.0,0.00013699,2]
[406415848,1771872632432,-232.25994081,0.00013699,2]
[406415850,1771872632444,-267.74005919,0.00013699,2]
[406415852,1771872632453,-165.44205088,0.0001372,2]
[406415909,1771872638448,-42.2096117,0.0001372,2]
[406415911,1771872638458,-1000.0,0.00013821,2]
[406415913,1771872638468,-1000.0,0.00013821,2]
[406415915,1771872638478,-1000.0,0.00014247,2]
[406415917,1771872638488,-1000.0,0.00014247,2]
[406415919,1771872638498,-1000.0,0.00014247,2]
[406415921,1771872638508,-902.71852055,0.00014368,2]
[406415923,1771872638517,-1500.0,0.00014368,2]
[406415925,1771872638527,-2000.0,0.00014916,2]
[406415927,1771872638538,-585.661899,0.00015116,2]
[406415929,1771872638547,-207.65166258,0.00015233,2]
[406415931,1771872638558,-561.48690819,0.00015464,2]
[406415933,1771872638567,-585.661899,0.00015753,2]
[406415936,1771872638579,-162.10741719,0.00016265,2]
[406415938,1771872638588,-1089.3008704,0.00016353,2]
[406415940,1771872638597,-585.661899,0.00016389,2]
[406415942,1771872638608,-500.0,0.00016438,2]
[406415944,1771872638618,-207.65166258,0.00016747,2]
[406415946,1771872638627,-3089.3743471,0.0001696,2]
[406415948,1771872638637,-156.591,0.0001696,2]
[406415950,1771872638647,-500.0,0.00016996,2]
[406415952,1771872638657,-500.0,0.00016997,2]
[406415954,1771872638667,-500.0,0.00016997,2]
[406415956,1771872638676,-9288.95855195,0.00017,2]
[406415958,1771872638685,-585.661899,0.00017025,2]
[406415960,1771872638695,-33366.50765069,0.000173,2]
[406416460,1771872643568,-2090.14552137,0.000173,2]
[406416463,1771872643580,-522.02479339,0.000173,2]
[406416465,1771872643590,-760.78037595,0.000173,2]
[406416720,1771872646313,-1051.65764077,0.000173,2]
[406416722,1771872646325,-4305.00548626,0.000173,2]
[406419035,1771872726661,500.0,0.00042415,120]
[406419036,1771872728562,151.0,0.00042415,120]
[406419038,1771872729186,156.587,0.00042415,120]
[406419039,1771872729807,162.380719,0.00042415,120]
[406419040,1771872730401,168.3888056,0.00042415,120]
[406419041,1771872731014,174.61919141,0.00042415,120]
[406419042,1771872731663,181.08010149,0.00042415,120]
[406419043,1771872732291,187.78006525,0.00042415,120]
[406419044,1771872735393,500.0,0.00042415,120]
[406419045,1771872735429,201.93286099,0.00042415,120]
[406419046,1771872736006,500.0,0.00042415,120]
[406419047,1771872736088,209.40437684,0.00042415,120]
[406419048,1771872736707,217.15233878,0.00042415,120]
[406419049,1771872737353,225.18697532,0.00042415,120]
[406419050,1771872737964,233.51889341,0.00042415,120]
[406419051,1771872738593,242.15909246,0.00042415,120]
[406419052,1771872739232,251.11897888,0.00042415,120]
[406419053,1771872739890,260.4103811,0.00042415,120]
[406419054,1771872740549,270.0455652,0.00042415,120]
[406419055,1771872741182,280.03725112,0.00042415,120]
[406419056,1771872741880,290.39862941,0.00042415,120]
[406419057,1771872742544,290.39862941,0.00042415,120]
[406419077,1771872771713,30000.93999957,0.00042415,10]
[406419085,1771872803302,376.55631926,0.00042415,120]
[406419086,1771872805853,151.0,0.00042415,120]
[406419087,1771872806486,156.587,0.00042415,120]
[406419088,1771872807076,162.380719,0.00042415,120]
[406419089,1771872807678,168.3888056,0.00042415,120]
[406419092,1771872810832,174.61919141,0.00042415,120]
[406419093,1771872815044,181.08010149,0.00042415,120]
[406419094,1771872815890,187.78006525,0.00042415,120]
[406419095,1771872816518,194.72792766,0.00042415,120]
[406419096,1771872817117,201.93286099,0.00042415,120]
[406419097,1771872817717,209.40437684,0.00042415,120]
[406419098,1771872818449,217.15233878,0.00042415,120]
[406419099,1771872819055,225.18697532,0.00042415,120]
[406419100,1771872819680,233.51889341,0.00042415,120]
[406419101,1771872820305,242.15909246,0.00042415,120]
[406419103,1771872820920,251.11897888,0.00042415,120]
[406419104,1771872821549,260.4103811,0.00042415,120]
[406419105,1771872822173,270.0455652,0.00042415,120]
[406419106,1771872822798,280.03725112,0.00042415,120]
[406419107,1771872823437,290.39862941,0.00042415,120]
[406419108,1771872824090,290.39862941,0.00042415,120]
[406419127,1771872886608,151.0,0.00042405,120]
[406419128,1771872887724,156.587,0.00042405,120]
[406419129,1771872888360,162.380719,0.00042405,120]
[406419131,1771872888973,168.3888056,0.00042405,120]
[406419132,1771872889580,174.61919141,0.00042405,120]
[406419133,1771872890195,181.08010149,0.00042405,120]
[406419134,1771872890825,187.78006525,0.00042405,120]
[406419135,1771872891453,194.72792766,0.00042405,120]
[406419136,1771872892246,201.93286099,0.00042405,120]
[406419137,1771872892912,209.40437684,0.00042405,120]
[406419138,1771872893637,217.15233878,0.00042405,120]
[406419139,1771872894205,225.18697532,0.00042405,120]
[406419140,1771872894806,233.51889341,0.00042405,120]
[406419141,1771872895417,242.15909246,0.00042405,120]
[406419142,1771872896042,251.11897888,0.00042405,120]
[406419143,1771872896721,260.4103811,0.00042405,120]
[406419144,1771872897819,270.0455652,0.00042405,120]
[406419145,1771872898439,280.03725112,0.00042405,120]
[406419146,1771872899038,290.39862941,0.00042405,120]
[406419147,1771872899674,290.39862941,0.00042405,120]
[406419191,1771873034040,151.0,0.00042405,120]
[406419192,1771873034668,156.587,0.00042405,120]
[406419193,1771873035355,162.380719,0.00042405,120]
[406419194,1771873035974,168.3888056,0.00042405,120]
[406419195,1771873036598,174.61919141,0.00042405,120]
[406419196,1771873037250,181.08010149,0.00042405,120]
[406419197,1771873037989,187.78006525,0.00042405,120]
[406419200,1771873039234,194.72792766,0.00042405,120]
[406419203,1771873039905,201.93286099,0.00042405,120]
[406419206,1771873040472,209.40437684,0.00042405,120]
[406419209,1771873041077,217.15233878,0.00042405,120]
[406419212,1771873041714,225.18697532,0.00042405,120]
[406419217,1771873042856,233.51889341,0.00042405,120]
[406419219,1771873043505,242.15909246,0.00042405,120]
[406419223,1771873044141,251.11897888,0.00042405,120]
[406419224,1771873044806,260.4103811,0.00042405,120]
[406419225,1771873045419,270.0455652,0.00042405,120]
[406419227,1771873046042,280.03725112,0.00042405,120]
[406419229,1771873046677,290.39862941,0.00042405,120]
[406419232,1771873047440,290.39862941,0.00042405,120]
[406419264,1771873152174,151.0,0.00042405,120]
[406419265,1771873152841,156.587,0.00042405,120]
[406419266,1771873153424,162.380719,0.00042405,120]
[406419267,1771873154054,168.3888056,0.00042405,120]
[406419268,1771873154722,174.61919141,0.00042405,120]
[406419269,1771873155355,181.08010149,0.00042405,120]
[406419270,1771873156077,187.78006525,0.00042405,120]
[406419271,1771873156710,194.72792766,0.00042405,120]
[406419272,1771873157470,201.93286099,0.00042405,120]
[406419273,1771873158104,209.40437684,0.00042405,120]
[406419274,1771873158712,217.15233878,0.00042405,120]
[406419275,1771873159835,225.18697532,0.00042405,120]
[406419276,1771873160479,233.51889341,0.00042405,120]
[406419277,1771873161108,242.15909246,0.00042405,120]
[406419278,1771873162326,251.11897888,0.00042405,120]
[406419279,1771873163062,260.4103811,0.00042405,120]
[406419280,1771873163676,270.0455652,0.00042405,120]
[406419281,1771873164322,280.03725112,0.00042405,120]
[406419282,1771873164959,290.39862941,0.00042405,120]
[406419283,1771873165587,290.39862941,0.00042405,120]
[406419286,1771873217823,151.0,0.00042422,120]
[406419287,1771873218436,156.587,0.00042422,120]
[406419288,1771873219120,162.380719,0.00042422,120]
[406419289,1771873219771,168.3888056,0.00042422,120]
[406419290,1771873220438,174.61919141,0.00042422,120]
[406419291,1771873221050,181.08010149,0.00042422,120]
[406419292,1771873221728,187.78006525,0.00042422,120]
[406419293,1771873222949,194.72792766,0.00042422,120]
[406419294,1771873224118,201.93286099,0.00042422,120]
[406419295,1771873224755,209.40437684,0.00042422,120]
[406419296,1771873225925,217.15233878,0.00042422,120]
[406419297,1771873226600,225.18697532,0.00042422,120]
[406419298,1771873227283,233.51889341,0.00042422,120]
[406419299,1771873227953,242.15909246,0.00042422,120]
[406419300,1771873228567,251.11897888,0.00042422,120]
[406419301,1771873229173,260.4103811,0.00042422,120]
[406419302,1771873229783,270.0455652,0.00042422,120]
[406419303,1771873230407,280.03725112,0.00042422,120]
[406419304,1771873231084,290.39862941,0.00042422,120]
[406419305,1771873231694,290.39862941,0.00042422,120]
[406419310,1771873243582,-1865.02349809,0.00012674,2]
[406419313,1771873328381,151.0,0.00042422,120]
[406419314,1771873328998,156.587,0.00042422,120]
[406419315,1771873329600,162.380719,0.00042422,120]
[406419316,1771873330271,168.3888056,0.00042422,120]
[406419317,1771873330842,174.61919141,0.00042422,120]
[406419318,1771873331469,181.08010149,0.00042422,120]
[406419319,1771873332118,187.78006525,0.00042422,120]
[406419320,1771873332740,194.72792766,0.00042422,120]
[406419321,1771873333346,201.93286099,0.00042422,120]
[406419322,1771873333959,209.40437684,0.00042422,120]
[406419323,1771873334582,217.15233878,0.00042422,120]
[406419324,1771873335184,225.18697532,0.00042422,120]
[406419325,1771873336332,233.51889341,0.00042422,120]
[406419326,1771873336961,242.15909246,0.00042422,120]
[406419327,1771873337613,251.11897888,0.00042422,120]
[406419328,1771873338254,260.4103811,0.00042422,120]
[406419329,1771873338872,270.0455652,0.00042422,120]
[406419330,1771873339472,280.03725112,0.00042422,120]
[406419331,1771873340166,290.39862941,0.00042422,120]
[406419332,1771873340732,290.39862941,0.00042422,120]
[406419333,1771873390014,151.0,0.00042422,120]
[406419334,1771873390665,156.587,0.00042422,120]
[406419335,1771873391285,162.380719,0.00042422,120]
[406419336,1771873391919,168.3888056,0.00042422,120]
[406419337,1771873392531,174.61919141,0.00042422,120]
[406419338,1771873393177,181.08010149,0.00042422,120]
[406419339,1771873393827,187.78006525,0.00042422,120]
[406419340,1771873394452,194.72792766,0.00042422,120]
[406419341,1771873395046,201.93286099,0.00042422,120]
[406419342,1771873395658,209.40437684,0.00042422,120]
[406419343,1771873396280,217.15233878,0.00042422,120]
[406419344,1771873396984,225.18697532,0.00042422,120]
[406419345,1771873397619,233.51889341,0.00042422,120]
[406419346,1771873398259,242.15909246,0.00042422,120]
[406419347,1771873398859,251.11897888,0.00042422,120]
[406419348,1771873399474,260.4103811,0.00042422,120]
[406419349,1771873400092,270.0455652,0.00042422,120]
[406419350,1771873400715,280.03725112,0.00042422,120]
[406419351,1771873401323,290.39862941,0.00042422,120]
[406419352,1771873401932,290.39862941,0.00042422,120]
[406419353,1771873445796,151.0,0.00042422,120]
[406419354,1771873446404,156.587,0.00042422,120]
[406419355,1771873447019,162.380719,0.00042422,120]
[406419356,1771873447602,168.3888056,0.00042422,120]
[406419357,1771873448199,174.61919141,0.00042422,120]
[406419358,1771873448808,181.08010149,0.00042422,120]
[406419359,1771873449434,181.08010149,0.00042422,120]
[406419361,1771873559090,-738.33636774,0.00012674,2]
[406419365,1771873628088,-4514.05934367,0.00012547,2]
[406419366,1771873628110,-300.0,0.00012673,2]
[406419367,1771873628131,-6130.65437587,0.00012674,2]
[406419368,1771873628150,-159.08156317,0.00012728,2]
[406419369,1771873628172,-1200.0,0.00013269,2]
[406419370,1771873628192,-300.0,0.00013269,2]
[406419371,1771873628214,-300.0,0.0001327,2]
[406419372,1771873628235,-300.0,0.0001327,2]
[406419373,1771873628256,-300.0,0.00013272,2]
[406419374,1771873628276,-607.09014476,0.00013273,2]
[406419375,1771873628296,-500.0,0.00013273,2]
[406419376,1771873628317,-500.0,0.00013273,2]
[406419377,1771873628338,-231.88813676,0.00013273,2]
[406419379,1771873680435,220.38,8.492e-05,2]
[406419415,1771873832522,-173.48129446,0.0001314,2]
[406419417,1771873832531,-300.0,0.00013272,2]
[406419419,1771873832540,-300.0,0.00013272,2]
[406419421,1771873832554,-1200.0,0.00013272,2]
[406419423,1771873832564,-500.0,0.00013273,2]
[406419425,1771873832574,-500.0,0.00013273,2]
[406419427,1771873832583,-500.0,0.00013273,2]
[406419428,1771873832592,-500.0,0.00013273,2]
[406419431,1771873832602,-503.89992485,0.00013273,2]
[406419433,1771873832611,-500.0,0.00013273,2]
[406419434,1771873832621,-500.0,0.00013273,2]
[406419436,1771873832630,-301.13703024,0.00013273,2]
[406419438,1771873832639,-151.91187899,0.00013273,2]
[406419441,1771873832649,-540.80390294,0.00013273,2]
[406419443,1771873832659,-500.0,0.00013273,2]
[406419445,1771873832668,-500.0,0.00013273,2]
[406419447,1771873832678,-8997.59093117,0.00013273,2]
[406419449,1771873832688,-218.2106455,0.00013273,2]
[406419451,1771873832697,-500.0,0.00013273,2]
[406419453,1771873832706,-500.0,0.00013273,2]
[406419455,1771873832716,-500.0,0.00013273,2]
[406419457,1771873832725,-500.0,0.00013273,2]
[406419459,1771873832735,-500.0,0.00013273,2]
[406419460,1771873832744,-500.0,0.00013273,2]
[406419462,1771873832754,-500.0,0.00013273,2]
[406419464,1771873832766,-533.28749668,0.00013273,2]
[406419466,1771873832776,-500.0,0.00013273,2]
[406419468,1771873832786,-500.0,0.00013273,2]
[406419470,1771873832796,-300.0,0.00013673,2]
[406419473,1771873832806,-300.0,0.00013673,2]
[406419474,1771873832815,-500.0,0.00013696,2]
[406419477,1771873832826,-500.0,0.00013696,2]
[406419479,1771873832836,-500.0,0.00013696,2]
[406419481,1771873832845,-500.0,0.00013696,2]
[406419483,1771873832854,-500.0,0.00013696,2]
[406419485,1771873832864,-500.0,0.00013696,2]
[406419486,1771873832873,-500.0,0.00013696,2]
[406419488,1771873832883,-500.0,0.00013696,2]
[406419491,1771873832895,-500.0,0.00013696,2]
[406419493,1771873832905,-630.87746211,0.00013696,2]
[406419495,1771873832914,-500.0,0.00013696,2]
[406419497,1771873832924,-500.0,0.00013696,2]
[406419499,1771873832933,-500.0,0.00013696,2]
[406419501,1771873832942,-500.0,0.00013696,2]
[406419503,1771873832951,-500.0,0.00013696,2]
[406419505,1771873832960,-500.0,0.00013696,2]
[406419507,1771873832970,-500.0,0.00013696,2]
[406419508,1771873832980,-500.0,0.00013696,2]
[406419510,1771873832990,-500.0,0.00013696,2]
[406419512,1771873832999,-500.0,0.00013696,2]
[406419514,1771873833008,-500.0,0.00013696,2]
[406419517,1771873833018,-500.0,0.00013696,2]
[406419519,1771873833028,-500.0,0.00013696,2]
[406419521,1771873833038,-500.0,0.00013696,2]
[406419523,1771873833047,-500.0,0.00013696,2]
[406419525,1771873833056,-244.59180103,0.00013696,2]
[406419527,1771873833066,-500.0,0.00013696,2]
[406419529,1771873833075,-500.0,0.00013696,2]
[406419531,1771873833084,-500.0,0.00013696,2]
[406419533,1771873833095,-500.0,0.00013696,2]
[406419535,1771873833104,-500.0,0.00013696,2]
[406419537,1771873833113,-500.0,0.00013696,2]
[406419539,1771873833122,-500.0,0.00013696,2]
[406419540,1771873833131,-500.0,0.00013696,2]
[406419541,1771873833140,-500.0,0.00013696,2]
[406419543,1771873833150,-500.0,0.00013696,2]
[406419545,1771873833160,-500.0,0.00013696,2]
[406419547,1771873833171,-500.0,0.00013696,2]
[406419549,1771873833180,-500.0,0.00013696,2]
[406419551,1771873833189,-500.0,0.00013696,2]
[406419553,1771873833199,-500.0,0.00013696,2]
[406419555,1771873833208,-500.0,0.00013696,2]
[406419557,1771873833217,-500.0,0.00013696,2]
[406419559,1771873833226,-500.0,0.00013696,2]
[406419561,1771873833237,-500.0,0.00013696,2]
[406419563,1771873833247,-491.26332927,0.00013696,2]
[406419565,1771873833259,-8.73667073,0.00013696,2]
[406419567,1771873833269,-500.0,0.00013696,2]
[406419570,1771873833278,-162.20332927,0.00013696,2]
[406419572,1771873833290,-337.79667073,0.00013696,2]
[406419574,1771873833300,-205.20332927,0.00013696,2]
[406419621,1771873838657,-294.79667073,0.00013696,2]
[406419623,1771873838667,-500.0,0.00013696,2]
[406419625,1771873838677,-500.0,0.00013696,2]
[406419627,1771873838687,-391.55203347,0.00013696,2]
[406419629,1771873838699,-108.44796653,0.00013696,2]
[406419631,1771873838709,-500.0,0.00013696,2]
[406419633,1771873838719,-500.0,0.00013696,2]
[406419635,1771873838729,-158.26864887,0.00013696,2]
[406419638,1771873838739,-500.0,0.00013696,2]
[406419640,1771873838748,-312.87908519,0.00013696,2]
[406419642,1771873838760,-187.12091481,0.00013696,2]
[406419644,1771873838770,-500.0,0.00013696,2]
[406419646,1771873838779,-483.11187009,0.00013696,2]
[406419674,1771873839043,-16.88812991,0.00013696,2]
[406419676,1771873839053,-500.0,0.00013696,2]
[406419678,1771873839062,-634.2520721,0.00013696,2]
[406419680,1771873839071,-500.0,0.00013696,2]
[406419682,1771873839080,-53.61241624,0.00013696,2]
[406419684,1771873839092,-446.38758376,0.00013696,2]
[406419686,1771873839101,-500.0,0.00013696,2]
[406419688,1771873839110,-500.0,0.00013696,2]
[406419690,1771873839120,-500.0,0.00013696,2]
[406419692,1771873839129,-500.0,0.00013696,2]
[406419694,1771873839139,-500.0,0.00013696,2]
[406419696,1771873839148,-500.0,0.00013696,2]
[406419698,1771873839157,-500.0,0.00013696,2]
[406419700,1771873839167,-500.0,0.00013696,2]
[406419702,1771873839176,-500.0,0.00013696,2]
[406419704,1771873839186,-500.0,0.00013696,2]
[406419706,1771873839195,-500.0,0.00013696,2]
[406419708,1771873839204,-500.0,0.00013696,2]
[406419710,1771873839215,-551.02204603,0.00013696,2]
[406419712,1771873839224,-500.0,0.00013696,2]
[406419714,1771873839237,-500.0,0.00013696,2]
[406419715,1771873839246,-500.0,0.00013696,2]
[406419717,1771873839256,-500.0,0.00013696,2]
[406419719,1771873839265,-500.0,0.00013696,2]
[406419721,1771873839274,-500.0,0.00013696,2]
[406419723,1771873839284,-500.0,0.00013696,2]
[406419725,1771873839293,-500.0,0.00013696,2]
[406419727,1771873839304,-500.0,0.00013696,2]
[406419729,1771873839313,-500.0,0.00013696,2]
[406419731,1771873839323,-500.0,0.00013696,2]
[406419733,1771873839332,-500.0,0.00013697,2]
[406419735,1771873839342,-500.0,0.00013698,2]
[406419737,1771873839351,-500.0,0.00013698,2]
[406419739,1771873839361,-500.0,0.00013698,2]
[406419741,1771873839371,-500.0,0.00013698,2]
[406419743,1771873839381,-500.0,0.00013698,2]
[406419745,1771873839390,-558.42,0.00013698,2]
[406419747,1771873839400,-500.0,0.00013698,2]
[406419750,1771873839414,-460.49856353,0.00013698,2]
[406419752,1771873839424,-301.701424,0.00013699,2]
[406419754,1771873839433,-500.0,0.00013699,2]
[406419756,1771873839443,-500.0,0.00013699,2]
[406419758,1771873839453,-500.0,0.00013699,2]
[406419760,1771873839463,-500.0,0.00013699,2]
[406419762,1771873839472,-500.0,0.00013699,2]
[406419764,1771873839482,-500.0,0.00013699,2]
[406419765,1771873839491,-500.0,0.00013699,2]
[406419768,1771873839501,-500.0,0.00013699,2]
[406419770,1771873839511,-500.49541617,0.00013699,2]
[406419772,1771873839521,-500.0,0.00013699,2]
[406419774,1771873839530,-500.0,0.00013699,2]
[406419776,1771873839539,-500.0,0.00013699,2]
[406419778,1771873839550,-500.9805962,0.00013699,2]
[406419780,1771873839559,-150.0,0.00013699,2]
[406419781,1771873839568,-500.0,0.00013699,2]
[406419784,1771873839578,-500.0,0.00013699,2]
[406419786,1771873839587,-500.0,0.00013699,2]
[406419787,1771873839597,-500.0,0.00013699,2]
[406419790,1771873839606,-500.0,0.00013699,2]
[406419791,1771873839615,-500.0,0.00013699,2]
[406419793,1771873839625,-500.0,0.00013699,2]
[406419795,1771873839635,-500.0,0.00013699,2]
[406419797,1771873839643,-500.80515973,0.00013699,2]
[406419799,1771873839653,-500.0,0.00013699,2]
[406419802,1771873839663,-228.76250101,0.00013699,2]
[406419803,1771873839672,-500.0,0.00013699,2]
[406419805,1771873839682,-335.32174632,0.00013699,2]
[406419808,1771873839692,-500.0,0.00013699,2]
[406419809,1771873839701,-500.0,0.00013699,2]
[406419812,1771873839711,-500.0,0.00013699,2]
[406419813,1771873839721,-500.0,0.00013699,2]
[406419816,1771873839730,-500.0,0.00013699,2]
[406419818,1771873839740,-500.0,0.00013699,2]
[406419828,1771873839830,-501.5411312,0.00013699,2]
[406419829,1771873839843,-500.0,0.00013699,2]
[406419830,1771873839852,-500.0,0.00013699,2]
[406419831,1771873839861,-500.0,0.00013699,2]
[406419832,1771873839870,-500.0,0.00013699,2]
[406419833,1771873839879,-500.0,0.00013699,2]
[406419834,1771873839888,-500.0,0.00013699,2]
[406419835,1771873839898,-522.34140551,0.00013699,2]
[406419836,1771873839907,-500.0,0.00013699,2]
[406419837,1771873839916,-500.0,0.00013699,2]
[406419838,1771873839925,-500.0,0.00013699,2]
[406419839,1771873839935,-500.0,0.00013699,2]
[406419840,1771873839944,-500.0,0.00013699,2]
[406419841,1771873839953,-500.0,0.00013699,2]
[406419842,1771873839962,-500.0,0.00013699,2]
[406419843,1771873839971,-500.0,0.00013699,2]
[406419844,1771873839980,-500.0,0.00013699,2]
[406419845,1771873839989,-500.0,0.00013699,2]
[406419846,1771873839998,-500.0,0.00013699,2]
[406419847,1771873840008,-500.0,0.00013699,2]
[406419848,1771873840017,-500.0,0.00013699,2]
[406419849,1771873840026,-500.0,0.00013699,2]
[406419850,1771873840035,-500.0,0.00013699,2]
[406419852,1771873840045,-501.0789461,0.00013699,2]
[406419854,1771873840055,-500.0,0.00013699,2]
[406419856,1771873840064,-500.0,0.00013699,2]
[406419858,1771873840075,-500.0,0.00013699,2]
[406419860,1771873840084,-500.0,0.00013699,2]
[406419862,1771873840094,-207.65166258,0.00013721,2]
[406419864,1771873840103,-1000.0,0.00013821,2]
[406419866,1771873840113,-1024.41059278,0.00013821,2]
[406419868,1771873840122,-1000.0,0.00013821,2]
[406419870,1771873840132,-1000.0,0.00013821,2]